bitfinex/quotes_BTCUSD_20250314
["timestamp","ask_amount","ask_price","bid_price","bid_amount"]
[1741916211373,0.001,81795.0,81794.0,0.22143211]
[1741916211574,0.001,81795.0,81794.0,0.23365711]
[1741916211791,0.012225,81799.0,81794.0,0.23365711]
[1741916212137,0.012225,81796.0,81794.0,0.0072638]
[1741916212344,0.256735,81797.0,81794.0,0.0092638]
[1741916212478,0.012225,81799.0,81794.0,0.0042638]
[1741916212479,0.256727,81799.0,81794.0,0.0042638]
[1741916212908,0.256732,81798.0,81794.0,0.0062638]
[1741916213109,0.24451,81797.0,81794.0,0.0062638]
[1741916213836,0.244498,81800.0,81796.0,0.00403782]
[1741916214034,0.01916338,81799.0,81796.0,0.00403782]
[1741916214234,0.01916338,81799.0,81795.0,0.256736]
[1741916214435,0.01916338,81799.0,81797.0,0.00404029]
[1741916214641,0.01916338,81799.0,81795.0,0.012225]
[1741916214851,0.01916338,81799.0,81798.0,0.00404029]
[1741916215051,0.01916338,81799.0,81794.0,0.259741]
[1741916215293,0.01916338,81799.0,81798.0,0.00404029]
[1741916215514,0.01916338,81799.0,81794.0,0.256741]
[1741916215838,0.01916338,81799.0,81794.0,0.259741]
[1741916215992,0.01916338,81799.0,81795.0,0.00404029]
[1741916216544,0.01916338,81799.0,81798.0,0.002]
[1741916216940,0.03138838,81799.0,81798.0,0.00604029]
[1741916217144,0.23235238,81800.0,81798.0,0.00404029]
[1741916217448,0.244503,81799.0,81795.0,0.002]
[1741916218083,0.244503,81799.0,81795.0,0.003]
[1741916218463,0.256728,81799.0,81795.0,0.003]
[1741916218905,0.244508,81797.0,81795.0,0.001]
[1741916219081,0.012225,81796.0,81795.0,0.001]
[1741916219919,0.012225,81796.0,81791.0,0.244523]
[1741916220167,0.244513,81795.0,81790.0,0.77653529]
[1741916220370,0.3,81798.0,81794.0,0.244514]
[1741916220545,0.3,81798.0,81796.0,0.012225]
[1741916220944,0.3,81799.0,81796.0,0.012225]
[1741916221124,0.3,81799.0,81795.0,0.247511]
[1741916221333,0.01916453,81798.0,81795.0,0.246511]
[1741916221752,0.01916453,81798.0,81795.0,0.258736]
[1741916221933,0.01916453,81798.0,81795.0,0.256736]
[1741916222973,0.01916453,81798.0,81797.0,0.244507]
[1741916223633,0.57469252,81820.0,81797.0,0.244507]
[1741916223634,0.0001691,81813.0,81808.0,0.256697]
[1741916224048,0.0001691,81813.0,81808.0,0.33965699]
[1741916225281,0.0001691,81813.0,81808.0,0.00405999]
[1741916225282,0.0123922,81809.0,81808.0,0.00405999]
[1741916225483,0.0001692,81809.0,81808.0,0.26075699]
[1741916225686,0.0001692,81809.0,81808.0,0.256697]
[1741916225838,0.0001692,81809.0,81808.0,0.26074004]
[1741916226044,0.02305371,81809.0,81808.0,0.26074004]
[1741916226377,0.02305371,81809.0,81808.0,0.26374004]
[1741916226723,0.04221451,81809.0,81808.0,0.26074004]
[1741916226937,0.04221451,81809.0,81808.0,0.26274004]
[1741916227540,0.04221451,81809.0,81808.0,0.26574004]
[1741916227756,0.04221451,81809.0,81808.0,0.26274004]
[1741916228189,0.04221451,81809.0,81808.0,0.26474004]
[1741916231215,0.04221451,81809.0,81808.0,0.02026604]
[1741916233256,0.06199478,81809.0,81808.0,0.02026604]
[1741916233479,0.04221451,81809.0,81808.0,0.02026604]
[1741916233682,0.04221451,81809.0,81808.0,0.10186604]
[1741916233683,0.02305371,81809.0,81808.0,0.10186604]
[1741916235115,0.02305371,81809.0,81808.0,0.11640689]
[1741916235330,0.02305371,81809.0,81808.0,0.57392914]
[1741916235530,7.1e-07,81809.0,81808.0,0.57070689]
[1741916235745,7.1e-07,81809.0,81808.0,0.59094229]
[1741916235937,7.1e-07,81809.0,81808.0,0.59394229]
[1741916236313,0.0001691,81813.0,81812.0,0.35362585]
[1741916236518,0.0001691,81813.0,81812.0,1.13395222]
[1741916236713,0.0001691,81813.0,81812.0,1.13295222]
[1741916237529,0.0011691,81813.0,81812.0,1.13595222]
[1741916238167,0.0011691,81813.0,81812.0,1.12141137]
[1741916238829,0.0011691,81813.0,81812.0,1.12641137]
[1741916241887,0.0011691,81813.0,81812.0,1.15038656]
[1741916244396,0.0515904,81832.0,81828.0,0.256632]
[1741916244596,0.3,81834.0,81829.0,0.00397865]
[1741916244813,0.01984921,81832.0,81829.0,0.00397865]
[1741916245028,0.244402,81833.0,81829.0,0.00397865]
[1741916245197,0.3,81834.0,81830.0,0.244409]
[1741916245397,0.01955018,81833.0,81830.0,0.244409]
[1741916245734,0.256616,81834.0,81831.0,0.00397865]
[1741916245902,0.01222,81832.0,81831.0,0.00397865]
[1741916246124,0.01222,81832.0,81830.0,5.529e-05]
[1741916246403,0.256625,81832.0,81831.0,0.00397865]
[1741916246633,0.244405,81832.0,81830.0,5.529e-05]
[1741916247066,0.26467997,81833.0,81831.0,0.00397865]
[1741916247270,0.27689997,81833.0,81831.0,0.00397865]
[1741916247510,0.27789997,81833.0,81831.0,0.00397865]
[1741916247708,0.27689997,81833.0,81831.0,0.00397865]
[1741916247915,0.02285838,81832.0,81831.0,0.00397865]
[1741916248492,0.03507838,81832.0,81831.0,0.00397865]
[1741916248903,0.256626,81831.0,81830.0,5.529e-05]
[1741916250157,0.256626,81831.0,81830.0,0.00403394]
[1741916250295,0.256626,81831.0,81830.0,5.529e-05]
[1741916250499,0.02285838,81831.0,81830.0,0.00403394]
[1741916250699,0.02285838,81831.0,81830.0,0.25668429]
[1741916250978,0.02285838,81831.0,81830.0,0.26066294]
[1741916255488,0.02285838,81831.0,81830.0,0.34356294]
[1741916256733,0.02285838,81831.0,81830.0,0.34556294]
[1741916257077,0.02285838,81831.0,81830.0,0.34756294]
[1741916258282,0.02285838,81831.0,81830.0,0.34790114]
[1741916258481,0.02302748,81831.0,81830.0,0.34790114]
[1741916259524,0.02302748,81831.0,81830.0,0.37250942]
[1741916260324,0.02302748,81831.0,81830.0,0.34790114]
[1741916261950,0.02302748,81831.0,81830.0,0.26500114]
[1741916262380,0.02302748,81831.0,81830.0,0.00837214]
[1741916264298,0.03524748,81831.0,81830.0,0.00837214]
[1741916264694,0.27965348,81831.0,81830.0,0.00837214]
[1741916264934,0.29994268,81831.0,81830.0,0.00837214]
[1741916265136,0.04331668,81831.0,81830.0,0.00837214]
[1741916265482,0.04331668,81831.0,81830.0,0.00437214]
[1741916265691,0.04331668,81831.0,81830.0,0.00537214]
[1741916265889,0.04331668,81831.0,81830.0,0.00737214]
[1741916266479,0.04331668,81831.0,81830.0,0.00537214]
[1741916266679,0.04331668,81831.0,81830.0,0.00637214]
[1741916267173,0.05553668,81831.0,81830.0,0.00637214]
[1741916267377,0.11602734,81831.0,81830.0,0.00239349]
[1741916267580,0.11602734,81831.0,81830.0,0.00139349]
[1741916267777,0.05553668,81831.0,81830.0,0.00139349]
[1741916267980,0.07469356,81831.0,81830.0,0.00239349]
[1741916269835,0.07469356,81831.0,81830.0,0.00635461]
[1741916271228,0.07469356,81831.0,81830.0,0.00239349]
[1741916272417,0.37469356,81831.0,81830.0,0.00239349]
[1741916272839,0.48916583,81831.0,81830.0,0.00239349]
[1741916273405,0.38615058,81831.0,81830.0,0.00239349]
[1741916275427,0.38615058,81831.0,81830.0,0.00139349]
[1741916275848,0.38615058,81831.0,81830.0,0.00039349]
[1741916276693,0.35553668,81831.0,81830.0,0.00039349]
[1741916278586,0.3386783,81831.0,81830.0,0.00039349]
[1741916278808,0.45863919,81831.0,81830.0,0.00039349]
[1741916279616,0.256681,81813.0,81812.0,0.7790982]
[1741916279820,0.556681,81813.0,81812.0,0.7790982]
[1741916281060,0.57584186,81813.0,81812.0,0.0027782]
[1741916281260,0.69580275,81813.0,81812.0,0.0047782]
[1741916281636,0.69580275,81813.0,81812.0,0.0067782]
[1741916282330,0.69580275,81813.0,81812.0,0.0047782]
[1741916282533,0.67664189,81813.0,81812.0,0.0027782]
[1741916283319,0.67764189,81813.0,81812.0,0.0027782]
[1741916284263,0.68702984,81813.0,81812.0,0.0027782]
[1741916284664,0.68902984,81813.0,81812.0,0.0027782]
[1741916284853,0.68802984,81813.0,81812.0,0.0027782]
[1741916285157,0.68902984,81813.0,81812.0,0.0027782]
[1741916285965,0.31238795,81813.0,81812.0,0.0027782]
[1741916286200,0.003,81813.0,81812.0,0.3085632]
[1741916286380,0.003,81813.0,81812.0,0.31259393]
[1741916287364,0.001,81813.0,81812.0,0.31259393]
[1741916287779,0.001,81813.0,81812.0,0.31459393]
[1741916288358,0.3,81820.0,81816.0,0.244449]
[1741916288580,0.3,81820.0,81817.0,0.00402219]
[1741916288784,0.3,81820.0,81818.0,0.256666]
[1741916288785,0.00940837,81820.0,81818.0,0.256666]
[1741916288985,0.3,81821.0,81818.0,0.256666]
[1741916289259,0.3,81821.0,81819.0,0.08542219]
[1741916289459,0.3,81822.0,81820.0,0.244439]
[1741916289681,0.256638,81828.0,81822.0,0.012221]
[1741916289881,0.256638,81828.0,81821.0,0.244433]
[1741916289882,0.25664,81827.0,81821.0,0.01624319]
[1741916290010,0.25664,81827.0,81820.0,0.256658]
[1741916290011,0.244429,81824.0,81819.0,0.093622]
[1741916290215,0.244429,81824.0,81822.0,0.00402219]
[1741916290449,0.244429,81824.0,81819.0,0.093622]
[1741916290793,0.01222,81827.0,81822.0,0.244432]
[1741916290989,0.26598277,81828.0,81822.0,0.256653]
[1741916291165,0.244383,81839.0,81828.0,0.01222]
[1741916291166,0.3,81838.0,81828.0,0.01222]
[1741916291406,0.312219,81838.0,81829.0,0.24842837]
[1741916291612,0.13936,81856.0,81829.0,0.24842837]
[1741916291613,0.00029374,81831.0,81830.0,0.08922]
[1741916291772,0.00029374,81831.0,81830.0,0.13572]
[1741916291974,0.00029374,81831.0,81830.0,0.13773837]
[1741916292656,0.01945005,81831.0,81830.0,0.13773837]
[1741916292860,0.02045005,81831.0,81830.0,0.13773837]
[1741916293262,0.01945005,81831.0,81830.0,0.13773837]
[1741916293663,0.02045005,81831.0,81830.0,0.13973837]
[1741916294099,0.01945005,81831.0,81830.0,0.13973837]
[1741916294325,0.01945005,81831.0,81830.0,0.14273837]
[1741916295025,0.01945005,81831.0,81830.0,0.14073837]
[1741916295230,0.00029374,81831.0,81830.0,0.14196039]
[1741916295419,7.4e-07,81831.0,81830.0,0.86980124]
[1741916295644,7.4e-07,81831.0,81830.0,0.89335611]
[1741916296004,7.4e-07,81831.0,81830.0,0.86857922]
[1741916296210,7.4e-07,81831.0,81830.0,0.86457922]
[1741916296405,8.4e-07,81837.0,81836.0,0.37931]
[1741916296663,8.4e-07,81837.0,81836.0,1.87839085]
[1741916296839,8.4e-07,81837.0,81836.0,1.88228908]
[1741916297826,8.4e-07,81837.0,81836.0,2.00599007]
[1741916298062,0.3,81875.0,81857.0,0.256544]
[1741916298292,0.00029273,81858.0,81857.0,0.52593056]
[1741916299387,0.00029273,81858.0,81857.0,0.52993056]
[1741916299552,0.01944108,81858.0,81857.0,0.52993056]
[1741916299743,0.01944108,81858.0,81857.0,0.52593056]
[1741916299945,0.01944108,81858.0,81857.0,0.53093056]
[1741916300272,0.02044108,81858.0,81857.0,0.48863056]
[1741916301010,0.02044108,81858.0,81857.0,0.40491056]
[1741916301176,0.02044108,81858.0,81857.0,0.14836656]
[1741916301378,0.02044108,81858.0,81857.0,0.14736656]
[1741916301557,0.01944108,81858.0,81857.0,0.00788656]
[1741916301764,0.01944108,81858.0,81857.0,0.15232656]
[1741916302247,0.01944108,81858.0,81857.0,0.14732656]
[1741916302700,0.01944108,81858.0,81857.0,0.16454256]
[1741916302903,0.01944108,81858.0,81857.0,0.15232656]
[1741916303128,0.01944108,81858.0,81857.0,0.14832656]
[1741916303336,0.01944108,81858.0,81857.0,0.15132656]
[1741916303734,0.012215,81862.0,81857.0,0.15132656]
[1741916304520,0.244319,81861.0,81857.0,0.15132656]
[1741916304717,0.244319,81861.0,81857.0,0.14332656]
[1741916304897,0.244307,81864.0,81858.0,0.256541]
[1741916305105,0.544295,81869.0,81861.0,0.012215]
[1741916305353,0.244301,81867.0,81861.0,0.012215]
[1741916305703,0.244301,81867.0,81862.0,0.00387924]
[1741916305897,0.244305,81865.0,81862.0,0.00387924]
[1741916306102,0.244301,81867.0,81861.0,0.244313]
[1741916306523,0.544295,81869.0,81863.0,0.012215]
[1741916306720,0.3,81867.0,81862.0,0.0038843]
[1741916307023,0.3,81867.0,81863.0,0.00388352]
[1741916307024,0.244307,81864.0,81863.0,0.00388352]
[1741916307385,0.244307,81864.0,81858.0,0.258541]
[1741916307592,0.244313,81863.0,81855.0,0.256548]
[1741916307720,0.244318,81861.0,81859.0,0.00388352]
[1741916307938,0.244318,81861.0,81855.0,0.256548]
[1741916308145,0.244318,81861.0,81860.0,0.00388352]
[1741916308346,0.244325,81858.0,81849.0,0.012217]
[1741916308538,0.244325,81858.0,81850.0,0.012217]
[1741916308897,0.26346846,81861.0,81853.0,0.24434]
[1741916309174,0.26346846,81861.0,81856.0,0.256544]
[1741916309607,0.01915046,81861.0,81856.0,0.256544]
[1741916310108,0.01915046,81861.0,81853.0,0.256557]
[1741916310109,0.03136546,81861.0,81860.0,0.004]
[1741916310319,0.01915046,81861.0,81860.0,0.004]
[1741916310805,0.27568146,81861.0,81860.0,0.004]
[1741916311229,0.27568146,81861.0,81860.0,0.002]
[1741916312402,0.27568146,81861.0,81860.0,0.006]
[1741916312754,0.24978231,81863.0,81860.0,0.006]
[1741916313472,0.256531,81861.0,81860.0,0.006]
[1741916313728,0.256531,81861.0,81860.0,0.004]
[1741916313952,0.256512,81868.0,81860.0,0.004]
[1741916314258,0.244284,81872.0,81866.0,0.244301]
[1741916314467,0.244284,81872.0,81863.0,0.244307]
[1741916314468,0.244292,81870.0,81863.0,0.244307]
[1741916314631,0.244295,81869.0,81864.0,0.00387043]
[1741916314837,0.244298,81868.0,81864.0,0.00387043]
[1741916315095,0.312214,81869.0,81861.0,0.244315]
[1741916315367,0.312214,81869.0,81865.0,0.0038687]
[1741916315602,0.312214,81869.0,81866.0,0.002]
[1741916315829,0.244295,81868.0,81866.0,0.0058687]
[1741916315973,0.3,81867.0,81866.0,0.002]
[1741916316177,0.3,81867.0,81865.0,0.256517]
[1741916316386,0.3,81867.0,81866.0,0.012215]
[1741916316603,0.012212,81883.0,81872.0,0.256497]
[1741916316604,0.012212,81882.0,81872.0,0.256497]
[1741916316814,0.012212,81880.0,81872.0,0.256497]
[1741916317069,0.54425,81884.0,81875.0,0.012213]
[1741916317388,0.556462,81884.0,81875.0,0.012213]
[1741916317602,0.01931547,81876.0,81875.0,0.012213]
[1741916317788,0.01931547,81876.0,81874.0,0.244274]
[1741916317984,0.0435059,81876.0,81874.0,0.256487]
[1741916318184,0.0435059,81876.0,81873.0,0.256492]
[1741916318415,0.0445059,81876.0,81872.0,0.012214]
[1741916318818,0.0465059,81876.0,81872.0,0.012214]
[1741916319049,0.04544854,81876.0,81872.0,0.012214]
[1741916319295,0.04644854,81876.0,81872.0,0.012214]
[1741916319483,0.04644854,81876.0,81871.0,0.244284]
[1741916319839,0.04644854,81876.0,81872.0,0.256495]
[1741916320041,0.04444854,81876.0,81872.0,0.256495]
[1741916320245,0.04444854,81876.0,81872.0,0.012214]
[1741916321093,0.04444854,81876.0,81871.0,0.244284]
[1741916321297,0.04344854,81876.0,81872.0,0.001]
[1741916322077,0.04344854,81876.0,81872.0,0.256495]
[1741916323820,0.04344854,81876.0,81872.0,0.012214]
[1741916324032,0.05566154,81876.0,81871.0,0.257498]
[1741916324388,0.05566154,81876.0,81871.0,0.256498]
[1741916324923,0.05566154,81876.0,81872.0,0.001]
[1741916325101,0.012213,81877.0,81873.0,0.24428]
[1741916325313,0.256484,81877.0,81871.0,0.256498]
[1741916325506,0.256484,81877.0,81871.0,0.257498]
[1741916326126,0.28063974,81877.0,81871.0,0.256498]
[1741916326347,0.28063974,81877.0,81873.0,0.001]
[1741916327381,0.22452164,81878.0,81873.0,0.001]
[1741916327581,0.256484,81877.0,81873.0,0.001]
[1741916327728,0.256484,81877.0,81871.0,0.256498]
[1741916328130,0.256484,81877.0,81871.0,0.257498]
[1741916328332,0.23673464,81878.0,81871.0,0.257498]
[1741916328551,0.26269442,81878.0,81872.0,0.244281]
[1741916328975,0.26169442,81878.0,81872.0,0.244281]
[1741916329157,0.26169442,81878.0,81873.0,0.00366885]
[1741916329773,0.01914678,81877.0,81873.0,0.00366885]
[1741916330988,0.01914678,81877.0,81873.0,0.00400685]
[1741916331374,0.01914678,81877.0,81874.0,0.244277]
[1741916332018,0.01914678,81877.0,81876.0,0.012213]
[1741916332564,0.01914678,81877.0,81876.0,0.01588185]
[1741916333189,0.01914678,81877.0,81876.0,0.00366885]
[1741916333811,0.01914678,81877.0,81874.0,0.013213]
[1741916334005,0.01914678,81877.0,81875.0,0.00366885]
[1741916334470,0.01914678,81877.0,81876.0,0.256484]
[1741916334631,0.01914678,81877.0,81876.0,0.257484]
[1741916334847,0.01914678,81877.0,81876.0,0.33885285]
[1741916335046,0.000169,81878.0,81877.0,0.012213]
[1741916335309,0.000169,81878.0,81877.0,0.01588329]
[1741916336552,6.794e-05,81878.0,81877.0,0.01588329]
[1741916337654,6.794e-05,81878.0,81877.0,0.01888329]
[1741916337857,6.794e-05,81878.0,81877.0,0.02088329]
[1741916339462,0.01921303,81878.0,81877.0,0.02088329]
[1741916341614,6.794e-05,81878.0,81877.0,0.24268456]
[1741916341811,6.794e-05,81878.0,81877.0,0.69676329]
[1741916341987,0.244146,81918.0,81902.0,0.012209]
[1741916342188,0.244146,81918.0,81896.0,0.01221]
[1741916342189,0.012208,81908.0,81899.0,0.01221]
[1741916342390,0.012208,81910.0,81904.0,0.012209]
[1741916342593,0.02530794,81908.0,81904.0,0.012209]
[1741916342767,0.33135037,81911.0,81905.0,0.00365276]
[1741916342982,0.31914237,81911.0,81905.0,0.00365276]
[1741916343192,0.24417,81910.0,81905.0,0.00365276]
[1741916343362,0.3,81907.0,81905.0,0.00365276]
[1741916343572,0.312208,81908.0,81901.0,0.012209]
[1741916343882,0.556386,81908.0,81901.0,0.256403]
[1741916344041,0.3,81906.0,81902.0,0.00364212]
[1741916344247,0.3,81906.0,81900.0,0.256407]
[1741916344447,0.3,81906.0,81901.0,0.00364212]
[1741916344448,0.3,81904.0,81901.0,0.00364212]
[1741916344694,0.3,81904.0,81898.0,0.244205]
[1741916344899,0.3,81904.0,81899.0,0.01585212]
[1741916345336,0.3,81904.0,81903.0,0.0778]
[1741916345484,0.3,81904.0,81902.0,0.001]
[1741916345694,0.312209,81904.0,81903.0,0.00360971]
[1741916345897,0.312209,81904.0,81901.0,0.001]
[1741916346144,0.312209,81904.0,81902.0,0.00360971]
[1741916346360,0.3,81904.0,81902.0,0.00360971]
[1741916346578,0.3,81904.0,81899.0,0.244203]
[1741916346792,0.3,81904.0,81903.0,0.00360971]
[1741916347033,0.29989896,81909.0,81905.0,0.012209]
[1741916347451,0.29989896,81909.0,81906.0,0.00360878]
[1741916348031,0.256375,81912.0,81906.0,0.00360878]
[1741916348528,0.256375,81912.0,81907.0,0.00344007]
[1741916348529,0.0226062,81911.0,81907.0,0.00344007]
[1741916348701,0.2667762,81911.0,81907.0,0.00344007]
[1741916348886,0.256378,81911.0,81905.0,0.25020878]
[1741916349091,0.3,81910.0,81906.0,0.001]
[1741916349287,0.3,81910.0,81907.0,0.00343928]
[1741916350008,0.3,81910.0,81905.0,0.25020878]
[1741916350371,0.32274628,81911.0,81910.0,0.012208]
[1741916350842,0.3,81911.0,81910.0,0.00343693]
[1741916351467,0.3,81911.0,81907.0,0.012208]
[1741916351823,0.3,81911.0,81908.0,0.0034344]
[1741916352212,0.3,81911.0,81906.0,0.244179]
[1741916352412,0.012208,81912.0,81906.0,0.256388]
[1741916352665,0.012208,81912.0,81910.0,0.001]
[1741916353025,0.03482976,81912.0,81906.0,0.256388]
[1741916353280,0.012208,81912.0,81911.0,0.00343168]
[1741916353453,0.33134833,81913.0,81911.0,0.00343168]
[1741916353658,0.33134833,81913.0,81912.0,0.00343222]
[1741916353993,0.012208,81912.0,81906.0,0.256388]
[1741916354189,0.3,81911.0,81907.0,0.012208]
[1741916354385,0.3,81911.0,81908.0,0.001]
[1741916355092,0.012208,81911.0,81900.0,0.01221]
[1741916355398,0.312208,81911.0,81905.0,0.256393]
[1741916355889,0.3,81911.0,81908.0,0.244176]
[1741916356093,0.3,81911.0,81908.0,0.245176]
[1741916356290,0.3,81911.0,81909.0,0.00342959]
[1741916357609,0.02193787,81912.0,81909.0,0.00342959]
[1741916357910,0.33134833,81913.0,81909.0,0.00342959]
[1741916358711,0.57551133,81913.0,81909.0,0.00442959]
[1741916358851,0.244167,81911.0,81909.0,0.00442959]
[1741916359057,0.012208,81910.0,81909.0,0.00342959]
[1741916359278,0.012209,81905.0,81903.0,0.13928]
[1741916359486,0.544188,81904.0,81903.0,0.13928]
[1741916359684,0.544188,81904.0,81903.0,0.14269511]
[1741916360223,0.31914084,81904.0,81903.0,0.14269511]
[1741916360628,0.33134984,81904.0,81903.0,0.14269511]
[1741916360979,0.44262242,81904.0,81903.0,0.00341511]
[1741916361181,0.42348158,81904.0,81903.0,0.00441511]
[1741916361334,0.42348158,81904.0,81903.0,0.001]
[1741916361537,0.49888158,81904.0,81903.0,0.001]
[1741916361914,0.012211,81893.0,81887.0,0.256448]
[1741916362153,0.3,81891.0,81888.0,0.00342388]
[1741916362370,0.24423,81890.0,81888.0,0.00342388]
[1741916362858,0.312211,81891.0,81885.0,0.012212]
[1741916363056,0.312211,81891.0,81889.0,0.00343319]
[1741916363258,0.244233,81889.0,81883.0,0.0475]
[1741916363401,0.012211,81887.0,81883.0,0.0475]
[1741916363611,0.012211,81888.0,81883.0,0.303962]
[1741916364013,0.244239,81887.0,81883.0,0.0475]
[1741916364230,0.012212,81883.0,81882.0,0.13956]
[1741916364434,0.012212,81883.0,81877.0,0.0003378]
[1741916364435,0.244259,81880.0,81877.0,0.0003378]
[1741916364649,0.256478,81878.0,81877.0,0.0003378]
[1741916365454,0.256489,81875.0,81871.0,0.1342758]
[1741916365856,0.012213,81874.0,81871.0,0.1342758]
[1741916366066,0.012215,81866.0,81860.0,0.079238]
[1741916366265,0.256519,81865.0,81861.0,0.13964]
[1741916366673,0.3,81869.0,81864.0,0.012215]
[1741916366895,0.3,81869.0,81864.0,0.256519]
[1741916367097,0.3,81869.0,81865.0,0.012215]
[1741916368228,0.556506,81870.0,81865.0,0.012215]
[1741916368450,0.312214,81870.0,81865.0,0.012215]
[1741916368638,0.244292,81869.0,81865.0,0.012215]
[1741916368939,0.3,81870.0,81866.0,0.256516]
[1741916369804,0.3,81875.0,81873.0,0.24428]
[1741916370005,0.3,81875.0,81874.0,0.012213]
[1741916370225,0.3,81875.0,81869.0,0.012214]
[1741916370425,0.31914733,81877.0,81871.0,0.012214]
[1741916370647,0.01914733,81877.0,81876.0,0.012213]
[1741916370800,0.01914733,81877.0,81876.0,0.137713]
[1741916371003,0.01914733,81877.0,81876.0,0.14121763]
[1741916372046,0.01914733,81877.0,81876.0,0.00350463]
[1741916372836,0.012214,81868.0,81863.0,0.090815]
[1741916373037,0.012214,81867.0,81863.0,0.0786]
[1741916373222,0.012214,81867.0,81860.0,0.012553]
[1741916373223,0.012215,81866.0,81864.0,0.00350159]
[1741916373623,0.256519,81866.0,81860.0,0.012553]
[1741916373818,0.256519,81866.0,81865.0,0.00350159]
[1741916374020,0.24431,81863.0,81860.0,0.000338]
[1741916374231,0.012215,81861.0,81860.0,0.000338]
[1741916374432,0.012215,81864.0,81860.0,0.000338]
[1741916375047,0.012215,81864.0,81863.0,0.003]
[1741916375608,0.012215,81862.0,81860.0,0.002338]
[1741916375757,0.012215,81861.0,81860.0,0.006338]
[1741916375973,0.312215,81861.0,81860.0,0.006338]
[1741916376361,0.312215,81861.0,81860.0,0.002338]
[1741916376561,0.4216154,81861.0,81860.0,0.000338]
[1741916376811,0.4216154,81861.0,81860.0,0.003338]
[1741916377029,0.4216154,81861.0,81860.0,0.000338]
[1741916377401,0.4226154,81861.0,81860.0,0.000338]
[1741916377628,0.3,81851.0,81843.0,0.129058]
[1741916377841,0.256563,81852.0,81846.0,0.24436]
[1741916378055,0.001,81861.0,81858.0,0.256538]
[1741916378246,0.001,81861.0,81860.0,0.012215]
[1741916378794,0.02014906,81861.0,81860.0,0.012215]
[1741916378989,0.02014906,81861.0,81860.0,0.012553]
[1741916379570,0.244289,81871.0,81864.0,0.256521]
[1741916380007,0.244293,81869.0,81860.0,0.014553]
[1741916380192,0.244293,81869.0,81860.0,0.012553]
[1741916380385,0.244293,81869.0,81860.0,0.013553]
[1741916380638,0.244298,81867.0,81860.0,0.015553]
[1741916380857,0.244304,81866.0,81860.0,0.014553]
[1741916381084,0.244304,81866.0,81860.0,0.258869]
[1741916381430,0.012215,81865.0,81860.0,0.258869]
[1741916382251,0.244307,81864.0,81860.0,0.000338]
[1741916382467,0.256522,81864.0,81860.0,0.000338]
[1741916382905,0.256514,81867.0,81861.0,0.012215]
[1741916383034,0.256519,81866.0,81861.0,0.012215]
[1741916383235,0.256521,81865.0,81860.0,0.25687]
[1741916383679,0.012215,81865.0,81860.0,0.25787]
[1741916383882,0.256519,81866.0,81861.0,0.012215]
[1741916384856,0.256519,81866.0,81860.0,0.247085]
[1741916385026,0.256519,81866.0,81860.0,0.246085]
[1741916385425,0.256519,81866.0,81860.0,0.247085]
[1741916385625,0.244294,81869.0,81862.0,0.012215]
[1741916385805,0.256512,81868.0,81863.0,0.256523]
[1741916386011,0.256508,81869.0,81864.0,0.012215]
[1741916386210,0.256512,81868.0,81863.0,0.256523]
[1741916386406,0.256512,81868.0,81861.0,0.012215]
[1741916386407,0.256516,81866.0,81861.0,0.012215]
[1741916386629,0.256516,81866.0,81860.0,0.256531]
[1741916387440,0.012215,81863.0,81859.0,0.13972]
[1741916388337,0.012215,81866.0,81860.0,0.012215]
[1741916388536,0.244295,81869.0,81862.0,0.012215]
[1741916388705,0.256531,81862.0,81860.0,0.001]
[1741916388907,0.012215,81862.0,81860.0,0.001]
[1741916389053,0.012215,81865.0,81859.0,0.244322]
[1741916389255,0.012215,81865.0,81861.0,0.00337429]
[1741916389494,0.012215,81865.0,81859.0,0.001]
[1741916389495,0.01914943,81862.0,81859.0,0.001]
[1741916389723,0.244316,81861.0,81859.0,0.001]
[1741916389911,0.256531,81861.0,81856.0,0.151976]
[1741916390084,0.256531,81861.0,81860.0,0.001]
[1741916390491,0.33540364,81861.0,81860.0,0.001]
[1741916391411,0.256554,81854.0,81848.0,0.244354]
[1741916391805,0.256554,81854.0,81847.0,0.012217]
[1741916391806,0.25656,81853.0,81847.0,0.012217]
[1741916392272,0.27571088,81853.0,81847.0,0.012217]
[1741916392594,0.27571088,81853.0,81848.0,0.001]
[1741916392794,0.256563,81852.0,81848.0,0.001]
[1741916393033,0.256563,81852.0,81847.0,0.012217]
[1741916393298,0.012217,81851.0,81846.0,0.38432]
[1741916393491,0.012217,81851.0,81847.0,0.001]
[1741916393946,0.256563,81852.0,81847.0,0.001]
[1741916395032,0.256563,81852.0,81847.0,0.002]
[1741916395246,0.012217,81850.0,81847.0,0.002]
[1741916395449,0.256569,81849.0,81847.0,0.002]
[1741916395666,0.012217,81848.0,81847.0,0.002]
[1741916395864,0.312217,81848.0,81847.0,0.002]
[1741916396156,0.312217,81848.0,81840.0,0.00012363]
[1741916396157,0.012218,81841.0,81840.0,0.00012363]
[1741916396696,0.556594,81841.0,81840.0,0.00012363]
[1741916397357,0.57892036,81841.0,81840.0,0.00012363]
[1741916397511,0.6886289,81841.0,81840.0,0.00012363]
[1741916399675,0.6896289,81841.0,81840.0,0.00012363]
[1741916403099,0.8191289,81841.0,81840.0,0.00012363]
[1741916403898,0.7681289,81841.0,81840.0,0.00012363]
[1741916404300,0.7701289,81841.0,81840.0,0.00012363]
[1741916404523,0.7681289,81841.0,81840.0,0.00012363]
[1741916404768,0.6886289,81841.0,81840.0,0.00012363]
[1741916405004,0.6926289,81841.0,81840.0,0.00046183]
[1741916405129,0.28292036,81841.0,81840.0,0.00046183]
[1741916405727,0.28192036,81841.0,81840.0,0.00046183]
[1741916405917,0.28492036,81841.0,81840.0,0.00046183]
[1741916406162,0.02832636,81841.0,81840.0,0.01267983]
[1741916406397,0.04054436,81841.0,81840.0,0.07746183]
[1741916406597,0.02532636,81841.0,81840.0,0.08093384]
[1741916407009,0.02632636,81841.0,81840.0,0.08093384]
[1741916407234,0.003,81841.0,81840.0,0.38553084]
[1741916407702,0.001,81841.0,81840.0,0.38553084]
[1741916407934,0.02269282,81851.0,81846.0,0.256576]
[1741916408147,0.02269282,81851.0,81846.0,0.255576]